[Event "Late-Titled-Tuesday-Blitz-June-25-2024"]
[Site "Chess.com"]
[Date "2024.06.25"]
[Round "7"]
[White "bazar-wokzal"]
[Black "Raja3401"]
[Result "0-1"]
[WhiteElo "2608"]
[BlackElo "2783"]
[TimeControl "180+1"]
[EndTime "15:15:11 PDT"]
[Termination "Raja3401 won on time"]

1. e4 {[%clk 0:03:00.9]} 1... c5 {[%clk 0:02:59.5]} 2. c3 {[%clk 0:03:00.4]}
2... Nf6 {[%clk 0:02:57.3]} 3. e5 {[%clk 0:03:00.3]} 3... Nd5 {[%clk 0:02:55.9]}
4. d4 {[%clk 0:03:00.7]} 4... cxd4 {[%clk 0:02:55.4]} 5. cxd4 {[%clk 0:03:01.5]}
5... Nc6 {[%clk 0:02:55.9]} 6. Nc3 {[%clk 0:03:00.8]} 6... Nxc3 {[%clk
0:02:54.9]} 7. bxc3 {[%clk 0:03:00.6]} 7... d6 {[%clk 0:02:55.8]} 8. f4 {[%clk
0:03:00]} 8... g5 {[%clk 0:02:54]} 9. fxg5 {[%clk 0:02:58.2]} 9... dxe5 {[%clk
0:02:54]} 10. Nf3 {[%clk 0:02:58.4]} 10... exd4 {[%clk 0:02:52.4]} 11. cxd4
{[%clk 0:02:58.1]} 11... Bg7 {[%clk 0:02:51.8]} 12. Be3 {[%clk 0:02:57.8]} 12...
O-O {[%clk 0:02:48.8]} 13. Bc4 {[%clk 0:02:35.1]} 13... e5 {[%clk 0:02:46.1]}
14. dxe5 {[%clk 0:02:23.8]} 14... Nxe5 {[%clk 0:02:43.9]} 15. Nxe5 {[%clk
0:02:16.5]} 15... Qa5+ {[%clk 0:02:38.7]} 16. Kf2 {[%clk 0:02:02]} 16... Qxe5
{[%clk 0:02:37]} 17. Rc1 {[%clk 0:01:55.5]} 17... Be6 {[%clk 0:02:35.6]} 18. Qf3
{[%clk 0:01:28.6]} 18... Rac8 {[%clk 0:02:28.4]} 19. Bd3 {[%clk 0:00:41.2]}
19... Qb2+ {[%clk 0:02:21.5]} 20. Kg3 {[%clk 0:00:37.6]} 20... Be5+ {[%clk
0:02:19.1]} 21. Kh4 {[%clk 0:00:21.3]} 21... Qb4+ {[%clk 0:02:00.4]} 22. Qe4
{[%clk 0:00:15.4]} 22... Qxe4+ {[%clk 0:01:51.4]} 23. Bxe4 {[%clk 0:00:16.3]}
23... Bxa2 {[%clk 0:01:47.7]} 24. Bxa7 {[%clk 0:00:12]} 24... b5 {[%clk
0:01:46.8]} 25. Rc5 {[%clk 0:00:05.1]} 25... Rxc5 {[%clk 0:01:44.5]} 26. Bxc5
{[%clk 0:00:05.2]} 26... Rc8 {[%clk 0:01:45.4]} 27. Rc1 {[%clk 0:00:01.6]} 27...
Bd4 {[%clk 0:01:40.9]} 28. Ba3 {[%clk 0:00:01.4]} 28... Rxc1 {[%clk 0:01:41.7]}
29. Bxc1 {[%clk 0:00:01.9]} 29... b4 {[%clk 0:01:42]} 30. Kg4 {[%clk 0:00:02]}
30... Be6+ {[%clk 0:01:40.4]} 31. Kf3 {[%clk 0:00:01.7]} 31... b3 {[%clk
0:01:41.3]} 32. Bb1 {[%clk 0:00:01.6]} 32... b2 {[%clk 0:01:40.5]} 33. Be3
{[%clk 0:00:01.8]} 33... Bd5+ {[%clk 0:01:40.9]} 34. Ke2 {[%clk 0:00:01.7]}
34... Be5 {[%clk 0:01:34.1]} 35. g3 {[%clk 0:00:01.5]} 35... f6 {[%clk
0:01:30.9]} 36. gxf6 {[%clk 0:00:01.2]} 36... Bf7 {[%clk 0:01:31.3]} 37. Kd2
{[%clk 0:00:01]} 37... Bg6 {[%clk 0:01:31.9]} 0-1

[Event "Late-Titled-Tuesday-Blitz-June-25-2024"]
[Site "Chess.com"]
[Date "2024.06.25"]
[Round "7"]
[White "Viktoker"]
[Black "Mackster23"]
[Result "1-0"]
[WhiteElo "2517"]
[BlackElo "2665"]
[TimeControl "180+1"]
[EndTime "15:15:16 PDT"]
[Termination "Viktoker won on time"]

1. d4 {[%clk 0:03:00.9]} 1... Nf6 {[%clk 0:02:59.8]} 2. Nf3 {[%clk 0:03:00.6]}
2... d5 {[%clk 0:02:59.9]} 3. c3 {[%clk 0:02:59.4]} 3... Bf5 {[%clk 0:02:56.1]}
4. Qb3 {[%clk 0:02:59.7]} 4... Qc8 {[%clk 0:02:51.9]} 5. c4 {[%clk 0:03:00.1]}
5... e6 {[%clk 0:02:49.9]} 6. cxd5 {[%clk 0:02:58.6]} 6... exd5 {[%clk
0:02:49.5]} 7. Nc3 {[%clk 0:02:58.6]} 7... c6 {[%clk 0:02:46.8]} 8. Bf4 {[%clk
0:02:58.7]} 8... Nbd7 {[%clk 0:02:39.1]} 9. e3 {[%clk 0:02:58.7]} 9... Nh5
{[%clk 0:02:29.7]} 10. Bg3 {[%clk 0:02:50.7]} 10... Nxg3 {[%clk 0:02:28.1]} 11.
hxg3 {[%clk 0:02:51.6]} 11... Bd6 {[%clk 0:02:24.9]} 12. Rc1 {[%clk 0:02:51.2]}
12... Qb8 {[%clk 0:02:07.1]} 13. Nh4 {[%clk 0:02:47.6]} 13... Be6 {[%clk
0:02:04.1]} 14. Bd3 {[%clk 0:02:47.5]} 14... g6 {[%clk 0:01:43]} 15. Nf3 {[%clk
0:02:38.6]} 15... Be7 {[%clk 0:01:32]} 16. Ne2 {[%clk 0:02:36.5]} 16... a5
{[%clk 0:01:25.2]} 17. Nf4 {[%clk 0:02:36.2]} 17... a4 {[%clk 0:01:24.6]} 18.
Qc2 {[%clk 0:02:35.9]} 18... Bg4 {[%clk 0:01:15.4]} 19. Bxg6 {[%clk 0:02:25.5]}
19... fxg6 {[%clk 0:00:32.5]} 20. Nxg6 {[%clk 0:02:25.4]} 20... Rf8 {[%clk
0:00:32.5]} 21. Nxf8 {[%clk 0:02:22.5]} 21... Nxf8 {[%clk 0:00:33.4]} 22. Ne5
{[%clk 0:02:20.3]} 22... Be6 {[%clk 0:00:32.1]} 23. Qe2 {[%clk 0:02:14.1]} 23...
Qd6 {[%clk 0:00:22.5]} 24. Qh5+ {[%clk 0:02:13.6]} 24... Kd8 {[%clk 0:00:20.4]}
25. Kf1 {[%clk 0:02:06.9]} 25... Kc7 {[%clk 0:00:16.1]} 26. Kg1 {[%clk
0:02:03.8]} 26... Qb4 {[%clk 0:00:07.8]} 27. Kh2 {[%clk 0:02:02.7]} 27... Qxb2
{[%clk 0:00:06.2]} 28. Nd3 {[%clk 0:01:56.3]} 28... Qa3 {[%clk 0:00:04.9]} 29.
Nc5 {[%clk 0:01:54.1]} 29... Bxc5 {[%clk 0:00:04.4]} 30. Rxc5 {[%clk 0:01:55]}
30... Nd7 {[%clk 0:00:04.2]} 31. Rc2 {[%clk 0:01:52.9]} 31... Nf6 {[%clk
0:00:02.4]} 32. Qh4 {[%clk 0:01:44.5]} 32... Ng4+ {[%clk 0:00:02.7]} 33. Kg1
{[%clk 0:01:44.5]} 33... Qb4 {[%clk 0:00:01.7]} 34. Rc1 {[%clk 0:01:41.2]} 34...
Kb6 {[%clk 0:00:01.4]} 35. Qxh7 {[%clk 0:01:29.9]} 35... Qd2 {[%clk 0:00:01.6]}
36. Rf1 {[%clk 0:01:29.7]} 36... Rf8 {[%clk 0:00:01.2]} 37. Qb1+ {[%clk
0:01:28.8]} 37... Ka7 {[%clk 0:00:01.7]} 38. Rh7 {[%clk 0:01:27.3]} 1-0

[Event "Late-Titled-Tuesday-Blitz-June-25-2024"]
[Site "Chess.com"]
[Date "2024.06.25"]
[Round "7"]
[White "josiur"]
[Black "FredddieCroderg"]
[Result "1-0"]
[WhiteElo "2475"]
[BlackElo "2335"]
[TimeControl "180+1"]
[EndTime "15:15:16 PDT"]
[Termination "josiur won by resignation"]

1. e4 {[%clk 0:03:00.9]} 1... e5 {[%clk 0:02:58.6]} 2. Nf3 {[%clk 0:03:00.6]}
2... f6 {[%clk 0:02:52.1]} 3. Nc3 {[%clk 0:03:01.5]} 3... Bb4 {[%clk 0:02:43.8]}
4. Bc4 {[%clk 0:02:52.9]} 4... Bxc3 {[%clk 0:02:41]} 5. dxc3 {[%clk 0:02:51.8]}
5... d6 {[%clk 0:02:37.2]} 6. Nh4 {[%clk 0:02:36.7]} 6... g6 {[%clk 0:02:32.8]}
7. O-O {[%clk 0:02:28.3]} 7... Qe7 {[%clk 0:02:31.9]} 8. Be3 {[%clk 0:02:21.5]}
8... Be6 {[%clk 0:02:30.2]} 9. Bb5+ {[%clk 0:02:17.6]} 9... Nd7 {[%clk
0:02:11.4]} 10. Nf3 {[%clk 0:02:12.4]} 10... c6 {[%clk 0:02:02.2]} 11. Be2
{[%clk 0:02:11.6]} 11... g5 {[%clk 0:01:56.4]} 12. c4 {[%clk 0:02:08.2]} 12...
h5 {[%clk 0:01:55.2]} 13. b4 {[%clk 0:02:05.6]} 13... h4 {[%clk 0:01:54.1]} 14.
Rb1 {[%clk 0:01:59.8]} 14... g4 {[%clk 0:01:52.6]} 15. Nd2 {[%clk 0:01:59.5]}
15... g3 {[%clk 0:01:52]} 16. fxg3 {[%clk 0:01:49.9]} 16... hxg3 {[%clk
0:01:51.3]} 17. h3 {[%clk 0:01:44.5]} 17... Qh7 {[%clk 0:01:43.2]} 18. Bg4
{[%clk 0:01:40.6]} 18... Bf7 {[%clk 0:01:34.3]} 19. c5 {[%clk 0:01:32.2]} 19...
d5 {[%clk 0:01:27.8]} 20. exd5 {[%clk 0:01:26.2]} 20... Bxd5 {[%clk 0:01:22.8]}
21. c4 {[%clk 0:01:26]} 21... Bf7 {[%clk 0:01:14.8]} 22. Bxd7+ {[%clk
0:01:09.7]} 22... Kxd7 {[%clk 0:01:13.3]} 23. Ne4+ {[%clk 0:01:10]} 23... Ke8
{[%clk 0:00:53.3]} 24. Nxf6+ {[%clk 0:00:53.9]} 24... Nxf6 {[%clk 0:00:50.7]}
25. Rxf6 {[%clk 0:00:54.8]} 25... Rd8 {[%clk 0:00:45.5]} 26. Rd6 {[%clk
0:00:48.2]} 26... Rxd6 {[%clk 0:00:43.6]} 27. cxd6 {[%clk 0:00:48.5]} 27... Qe4
{[%clk 0:00:38]} 28. d7+ {[%clk 0:00:45]} 1-0

[Event "Late-Titled-Tuesday-Blitz-June-25-2024"]
[Site "Chess.com"]
[Date "2024.06.25"]
[Round "7"]
[White "wild3000"]
[Black "cthulhuuu"]
[Result "0-1"]
[WhiteElo "2511"]
[BlackElo "2386"]
[TimeControl "180+1"]
[EndTime "15:15:16 PDT"]
[Termination "cthulhuuu won by resignation"]

1. b3 {[%clk 0:02:57]} 1... Nf6 {[%clk 0:02:59.8]} 2. d3 {[%clk 0:02:57.1]} 2...
g6 {[%clk 0:03:00.7]} 3. Bb2 {[%clk 0:02:57.3]} 3... Bg7 {[%clk 0:03:01.3]} 4.
e4 {[%clk 0:02:57.7]} 4... d6 {[%clk 0:03:01.6]} 5. g3 {[%clk 0:02:57.6]} 5...
O-O {[%clk 0:03:01.8]} 6. Bg2 {[%clk 0:02:58.2]} 6... c5 {[%clk 0:03:01.8]} 7.
c4 {[%clk 0:02:57]} 7... Nc6 {[%clk 0:03:02.1]} 8. Ne2 {[%clk 0:02:57]} 8... a6
{[%clk 0:03:01.1]} 9. O-O {[%clk 0:02:56.7]} 9... Rb8 {[%clk 0:03:01.5]} 10.
Nbc3 {[%clk 0:02:56]} 10... b5 {[%clk 0:03:00.4]} 11. Nd5 {[%clk 0:02:54.8]}
11... Nxd5 {[%clk 0:02:54.6]} 12. Bxg7 {[%clk 0:02:55.7]} 12... Kxg7 {[%clk
0:02:49.5]} 13. cxd5 {[%clk 0:02:55.1]} 13... Nd4 {[%clk 0:02:44.8]} 14. Nxd4
{[%clk 0:02:52.4]} 14... cxd4 {[%clk 0:02:45.7]} 15. Qd2 {[%clk 0:02:51.9]}
15... Qb6 {[%clk 0:02:42.1]} 16. Rfc1 {[%clk 0:02:51]} 16... Bd7 {[%clk
0:02:42.3]} 17. f4 {[%clk 0:02:50.1]} 17... f6 {[%clk 0:02:42.3]} 18. h4 {[%clk
0:02:50.1]} 18... Rfc8 {[%clk 0:02:39.8]} 19. Bf3 {[%clk 0:02:48.5]} 19... b4
{[%clk 0:02:38.3]} 20. Rc4 {[%clk 0:02:47.5]} 20... Bb5 {[%clk 0:02:31.6]} 21.
Rxb4 {[%clk 0:02:38.7]} 21... a5 {[%clk 0:02:31.3]} 22. Rc4 {[%clk 0:02:35.6]}
22... Bxc4 {[%clk 0:02:31.6]} 23. dxc4 {[%clk 0:02:34.1]} 23... a4 {[%clk
0:02:31.3]} 24. Bd1 {[%clk 0:02:31.2]} 24... d3+ {[%clk 0:02:24.5]} 25. Qf2
{[%clk 0:02:23.9]} 25... Qb4 {[%clk 0:02:10.9]} 26. Rc1 {[%clk 0:02:10.4]} 26...
d2 {[%clk 0:02:10.8]} 27. Rb1 {[%clk 0:02:03.4]} 27... Qc3 {[%clk 0:02:10.8]}
28. Qf3 {[%clk 0:01:45.2]} 28... Qxf3 {[%clk 0:02:04.8]} 29. Bxf3 {[%clk
0:01:43.9]} 29... Rxc4 {[%clk 0:02:05.4]} 30. Rd1 {[%clk 0:01:39.8]} 30... axb3
{[%clk 0:02:01.9]} 31. axb3 {[%clk 0:01:32.4]} 31... Rxb3 {[%clk 0:01:56.5]} 32.
Kf2 {[%clk 0:01:32.8]} 32... Rc1 {[%clk 0:01:51.3]} 33. Rxd2 {[%clk 0:01:30.8]}
33... Rcc3 {[%clk 0:01:43.9]} 34. Bd1 {[%clk 0:01:30.3]} 34... Ra3 {[%clk
0:01:34.4]} 35. g4 {[%clk 0:01:23.1]} 35... Rh3 {[%clk 0:01:30.7]} 36. h5 {[%clk
0:01:16.9]} 36... Rh2+ {[%clk 0:01:30.6]} 37. Ke1 {[%clk 0:01:16.1]} 37... Re3+
{[%clk 0:01:30.6]} 38. Re2 {[%clk 0:01:15.8]} 38... Rhxe2+ {[%clk 0:01:30.2]}
39. Bxe2 {[%clk 0:01:15.8]} 39... Rxe4 {[%clk 0:01:30.8]} 40. hxg6 {[%clk
0:01:15.7]} 40... hxg6 {[%clk 0:01:28.1]} 41. Kf2 {[%clk 0:01:15.6]} 41... Rxf4+
{[%clk 0:01:28.1]} 42. Kg3 {[%clk 0:01:15.7]} 42... g5 {[%clk 0:01:28.4]} 43.
Bb5 {[%clk 0:01:13.6]} 43... Kf8 {[%clk 0:01:28.6]} 44. Bd7 {[%clk 0:01:13.3]}
44... Re4 {[%clk 0:01:21.4]} 45. Bf5 {[%clk 0:01:11.4]} 45... Re5 {[%clk
0:01:21.5]} 46. Be6 {[%clk 0:01:11.5]} 46... Rxe6 {[%clk 0:01:21.7]} 47. dxe6
{[%clk 0:01:11.7]} 47... Ke8 {[%clk 0:01:17.5]} 48. Kf3 {[%clk 0:01:11.4]} 48...
Kd8 {[%clk 0:01:18]} 49. Ke4 {[%clk 0:01:11.2]} 49... Kc7 {[%clk 0:01:18]} 50.
Kd5 {[%clk 0:01:02.4]} 50... Kb6 {[%clk 0:01:17.4]} 0-1

[Event "Late-Titled-Tuesday-Blitz-June-25-2024"]
[Site "Chess.com"]
[Date "2024.06.25"]
[Round "7"]
[White "romulocardoso"]
[Black "corvachesky"]
[Result "1-0"]
[WhiteElo "2326"]
[BlackElo "2468"]
[TimeControl "180+1"]
[EndTime "15:15:17 PDT"]
[Termination "romulocardoso won by resignation"]

1. e4 {[%clk 0:03:00.9]} 1... e5 {[%clk 0:02:55.4]} 2. Nf3 {[%clk 0:03:00.1]}
2... Nc6 {[%clk 0:02:54.5]} 3. d4 {[%clk 0:03:00.1]} 3... exd4 {[%clk
0:02:54.1]} 4. Bc4 {[%clk 0:02:58.7]} 4... Nf6 {[%clk 0:02:49.3]} 5. e5 {[%clk
0:02:53.3]} 5... d5 {[%clk 0:02:49.3]} 6. Bb5 {[%clk 0:02:53.3]} 6... Nd7 {[%clk
0:02:47.3]} 7. O-O {[%clk 0:02:50.2]} 7... Be7 {[%clk 0:02:30.5]} 8. Re1 {[%clk
0:02:46.8]} 8... O-O {[%clk 0:02:30.2]} 9. Bxc6 {[%clk 0:02:45.6]} 9... bxc6
{[%clk 0:02:29.4]} 10. Nxd4 {[%clk 0:02:45.2]} 10... Nb8 {[%clk 0:02:29.5]} 11.
Bf4 {[%clk 0:02:32.7]} 11... c5 {[%clk 0:02:27.6]} 12. Nb3 {[%clk 0:02:30.9]}
12... Bb7 {[%clk 0:02:24.7]} 13. Nc3 {[%clk 0:02:27.7]} 13... Bg5 {[%clk
0:01:59.4]} 14. Nxd5 {[%clk 0:02:11.5]} 14... Bxf4 {[%clk 0:01:46.2]} 15. Nxf4
{[%clk 0:02:12.4]} 15... Qg5 {[%clk 0:01:45.5]} 16. Nxc5 {[%clk 0:02:12.7]}
16... Bc6 {[%clk 0:01:40.4]} 17. Qd4 {[%clk 0:01:47.6]} 17... Rd8 {[%clk
0:01:36.6]} 18. Qe3 {[%clk 0:01:46.8]} 18... Qe7 {[%clk 0:01:12]} 19. e6 {[%clk
0:01:30.3]} 19... f6 {[%clk 0:01:06.2]} 20. Rad1 {[%clk 0:01:29.8]} 20... Rd6
{[%clk 0:01:03.5]} 21. Ne4 {[%clk 0:01:16.3]} 21... Rxd1 {[%clk 0:00:55.6]} 22.
Rxd1 {[%clk 0:01:16.9]} 22... Na6 {[%clk 0:00:50.5]} 23. a3 {[%clk 0:01:00]}
23... Re8 {[%clk 0:00:43]} 24. b4 {[%clk 0:00:59.2]} 24... Nb8 {[%clk
0:00:21.2]} 25. Qc5 {[%clk 0:00:51.8]} 25... Bxe4 {[%clk 0:00:19]} 26. Qxe7
{[%clk 0:00:51.8]} 1-0

[Event "Late-Titled-Tuesday-Blitz-June-25-2024"]
[Site "Chess.com"]
[Date "2024.06.25"]
[Round "7"]
[White "Bryanl106"]
[Black "Zq1"]
[Result "0-1"]
[WhiteElo "2711"]
[BlackElo "2509"]
[TimeControl "180+1"]
[EndTime "15:15:20 PDT"]
[Termination "Zq1 won by checkmate"]

1. e4 {[%clk 0:03:00.9]} 1... c5 {[%clk 0:02:59.4]} 2. Nf3 {[%clk 0:03:01.3]}
2... d6 {[%clk 0:02:59.6]} 3. d4 {[%clk 0:03:01.4]} 3... cxd4 {[%clk 0:02:59.6]}
4. Nxd4 {[%clk 0:03:01.5]} 4... Nf6 {[%clk 0:02:59.7]} 5. Nc3 {[%clk 0:03:02.2]}
5... Nc6 {[%clk 0:02:59.8]} 6. f3 {[%clk 0:03:00.1]} 6... Nxd4 {[%clk
0:02:59.5]} 7. Qxd4 {[%clk 0:03:01]} 7... g6 {[%clk 0:02:59.4]} 8. Be3 {[%clk
0:02:52.9]} 8... Bg7 {[%clk 0:02:59]} 9. Qd2 {[%clk 0:02:53.6]} 9... h5 {[%clk
0:02:51.2]} 10. Bb5+ {[%clk 0:02:51.4]} 10... Bd7 {[%clk 0:02:50.4]} 11. a4
{[%clk 0:02:52.1]} 11... a6 {[%clk 0:02:49.5]} 12. Bxd7+ {[%clk 0:02:50.5]}
12... Qxd7 {[%clk 0:02:49.7]} 13. a5 {[%clk 0:02:50.5]} 13... Rc8 {[%clk
0:02:47.5]} 14. O-O {[%clk 0:02:49]} 14... O-O {[%clk 0:02:45.2]} 15. Ra3 {[%clk
0:02:47]} 15... Qc6 {[%clk 0:02:36.9]} 16. Rb3 {[%clk 0:02:45.2]} 16... Rfd8
{[%clk 0:02:31.2]} 17. Rb6 {[%clk 0:02:31.4]} 17... Qc7 {[%clk 0:02:25.5]} 18.
Rd1 {[%clk 0:02:29.8]} 18... Re8 {[%clk 0:02:24.3]} 19. Bd4 {[%clk 0:02:29]}
19... e6 {[%clk 0:02:13.1]} 20. Be3 {[%clk 0:02:08.4]} 20... d5 {[%clk
0:02:06.8]} 21. Bf4 {[%clk 0:01:46.9]} 21... Qc5+ {[%clk 0:02:00.1]} 22. Be3
{[%clk 0:01:46.9]} 22... Qc7 {[%clk 0:01:58.8]} 23. exd5 {[%clk 0:01:21.6]}
23... Nxd5 {[%clk 0:01:57.8]} 24. Nxd5 {[%clk 0:01:21.7]} 24... exd5 {[%clk
0:01:57.5]} 25. c3 {[%clk 0:01:19.2]} 25... h4 {[%clk 0:01:51]} 26. Bd4 {[%clk
0:01:14.7]} 26... Bxd4+ {[%clk 0:01:47.5]} 27. Qxd4 {[%clk 0:01:14.5]} 27... h3
{[%clk 0:01:43.3]} 28. g3 {[%clk 0:01:08.1]} 28... Re2 {[%clk 0:01:39.5]} 29.
Rd2 {[%clk 0:01:05.3]} 29... Rxd2 {[%clk 0:01:33.9]} 30. Qxd2 {[%clk 0:01:06.2]}
30... Qc5+ {[%clk 0:01:33.3]} 31. Qd4 {[%clk 0:00:45.5]} 31... Qxd4+ {[%clk
0:01:33.2]} 32. cxd4 {[%clk 0:00:46.4]} 32... Rc1+ {[%clk 0:01:26.6]} 33. Kf2
{[%clk 0:00:46.7]} 33... Rc2+ {[%clk 0:01:26.9]} 34. Ke3 {[%clk 0:00:47.3]}
34... Rxh2 {[%clk 0:01:26.8]} 35. Rxb7 {[%clk 0:00:47.7]} 35... Rc2 {[%clk
0:01:22.7]} 36. Kd3 {[%clk 0:00:41.4]} 36... Rc1 {[%clk 0:01:17.9]} 37. Kd2
{[%clk 0:00:40]} 37... Rg1 {[%clk 0:01:12.6]} 38. b4 {[%clk 0:00:39.1]} 38... h2
{[%clk 0:01:12]} 39. b5 {[%clk 0:00:40]} 39... h1=Q {[%clk 0:01:10.9]} 40. bxa6
{[%clk 0:00:40.3]} 40... Qxf3 {[%clk 0:01:09]} 41. a7 {[%clk 0:00:40.4]} 41...
Rd1+ {[%clk 0:01:08.1]} 42. Kc2 {[%clk 0:00:39.9]} 42... Qd3+ {[%clk 0:01:07.8]}
43. Kb2 {[%clk 0:00:40.6]} 43... Qxd4+ {[%clk 0:01:03.9]} 44. Kc2 {[%clk
0:00:34.8]} 44... Qd3+ {[%clk 0:01:00.4]} 45. Kb2 {[%clk 0:00:35.1]} 45... Qb1+
{[%clk 0:01:00.4]} 46. Kc3 {[%clk 0:00:34.5]} 46... Rd3# {[%clk 0:00:59]} 0-1

[Event "Late-Titled-Tuesday-Blitz-June-25-2024"]
[Site "Chess.com"]
[Date "2024.06.25"]
[Round "7"]
[White "ReinisUz"]
[Black "ozates"]
[Result "1-0"]
[WhiteElo "2463"]
[BlackElo "2599"]
[TimeControl "180+1"]
[EndTime "15:15:26 PDT"]
[Termination "ReinisUz won by resignation"]

1. c4 {[%clk 0:03:00.9]} 1... g6 {[%clk 0:02:55.9]} 2. Nc3 {[%clk 0:03:00.8]}
2... Bg7 {[%clk 0:02:56.8]} 3. g3 {[%clk 0:03:00.8]} 3... c5 {[%clk 0:02:57.3]}
4. Bg2 {[%clk 0:03:01.1]} 4... Nc6 {[%clk 0:02:57.7]} 5. e4 {[%clk 0:03:01.6]}
5... d6 {[%clk 0:02:58.2]} 6. Nge2 {[%clk 0:03:02.1]} 6... e6 {[%clk 0:02:57.7]}
7. O-O {[%clk 0:03:02.1]} 7... Nge7 {[%clk 0:02:58.4]} 8. d3 {[%clk 0:03:02.2]}
8... O-O {[%clk 0:02:59]} 9. Rb1 {[%clk 0:03:02.3]} 9... Rb8 {[%clk 0:02:58.4]}
10. a3 {[%clk 0:03:02.5]} 10... a6 {[%clk 0:02:58.3]} 11. b4 {[%clk 0:03:02.3]}
11... cxb4 {[%clk 0:02:57.5]} 12. axb4 {[%clk 0:03:03.2]} 12... b5 {[%clk
0:02:58.2]} 13. cxb5 {[%clk 0:03:03.3]} 13... axb5 {[%clk 0:02:58]} 14. d4
{[%clk 0:02:59.2]} 14... e5 {[%clk 0:02:54.6]} 15. d5 {[%clk 0:02:53.1]} 15...
Nd4 {[%clk 0:02:54.3]} 16. Nxd4 {[%clk 0:02:52.9]} 16... exd4 {[%clk 0:02:55.2]}
17. Ne2 {[%clk 0:02:53.4]} 17... f5 {[%clk 0:02:44.4]} 18. Nxd4 {[%clk
0:02:51.5]} 18... fxe4 {[%clk 0:02:44.4]} 19. Bxe4 {[%clk 0:02:50.7]} 19... Bh3
{[%clk 0:02:38.5]} 20. Re1 {[%clk 0:02:47.8]} 20... Nf5 {[%clk 0:02:34.6]} 21.
Nxf5 {[%clk 0:02:45.2]} 21... Bxf5 {[%clk 0:02:34.1]} 22. Bb2 {[%clk 0:02:32.5]}
22... Bxe4 {[%clk 0:02:30.6]} 23. Rxe4 {[%clk 0:02:31.2]} 23... Qb6 {[%clk
0:02:23.1]} 24. Qe2 {[%clk 0:02:14.6]} 24... Bxb2 {[%clk 0:02:22.8]} 25. Rxb2
{[%clk 0:02:12.8]} 25... Ra8 {[%clk 0:02:18.9]} 26. Kg2 {[%clk 0:02:05.1]} 26...
Ra3 {[%clk 0:02:17.7]} 27. Re8 {[%clk 0:02:01]} 27... Rf3 {[%clk 0:02:08.3]} 28.
Qxf3 {[%clk 0:01:46.9]} 28... Rxe8 {[%clk 0:02:08.2]} 29. Re2 {[%clk 0:01:46.3]}
29... Rf8 {[%clk 0:02:02.3]} 30. Qe4 {[%clk 0:01:45.4]} 30... Qc7 {[%clk
0:01:58.6]} 31. Qe6+ {[%clk 0:01:44.8]} 31... Kh8 {[%clk 0:01:58.7]} 32. h4
{[%clk 0:01:39]} 32... Qb8 {[%clk 0:01:45.1]} 33. Re3 {[%clk 0:01:28.6]} 33...
Qd8 {[%clk 0:01:41.2]} 34. Rf3 {[%clk 0:01:27.3]} 34... Rxf3 {[%clk 0:01:37.3]}
35. Kxf3 {[%clk 0:01:28.2]} 35... Qf8+ {[%clk 0:01:33.9]} 36. Ke3 {[%clk
0:01:26.3]} 36... Qd8 {[%clk 0:01:30]} 37. Qf7 {[%clk 0:01:16.8]} 37... Qb8
{[%clk 0:01:14.7]} 38. Kf4 {[%clk 0:01:15.6]} 38... Qd8 {[%clk 0:01:13.4]} 39.
Kg4 {[%clk 0:01:13.3]} 39... Qc8+ {[%clk 0:01:08.7]} 40. Kg5 {[%clk 0:01:11.8]}
40... Qg8 {[%clk 0:00:16.5]} 41. Qxg8+ {[%clk 0:01:10.5]} 41... Kxg8 {[%clk
0:00:17]} 42. Kf6 {[%clk 0:01:11.2]} 1-0